bitfinex/quotes_BTCUSD_20240730
["timestamp","ask_amount","ask_price","bid_price","bid_amount"]
[1722300946867,0.02951697,66694.0,66693.0,1.40900504]
[1722300947066,0.00083,66698.0,66697.0,0.760925]
[1722300947410,0.00083,66698.0,66697.0,1.52433804]
[1722300947559,0.00083,66698.0,66697.0,1.50433804]
[1722300947765,0.00083,66698.0,66697.0,1.51433804]
[1722300947966,0.00083,66698.0,66697.0,1.50433804]
[1722300948166,0.00083,66698.0,66697.0,1.26444804]
[1722300948367,0.00083,66698.0,66697.0,1.27444804]
[1722300948570,0.00083,66698.0,66697.0,1.25144804]
[1722300948769,0.00083,66698.0,66697.0,1.01155804]
[1722300949011,0.00083,66698.0,66697.0,0.67166804]
[1722300949419,0.00083,66698.0,66697.0,0.43177804]
[1722300949594,0.00083,66698.0,66697.0,0.31183304]
[1722300949762,0.00083,66698.0,66697.0,0.29183304]
[1722300950208,0.00866198,66698.0,66697.0,0.29183304]
[1722300950408,0.00083,66698.0,66697.0,0.41177804]
[1722300951530,0.00183,66698.0,66697.0,0.42177804]
[1722300951934,0.00183,66698.0,66697.0,0.68166804]
[1722300952281,0.00183,66698.0,66697.0,0.30183304]
[1722300952488,0.00183,66698.0,66697.0,0.01]
[1722300952489,0.36166,66698.0,66697.0,0.01]
[1722300952690,0.637713,66698.0,66697.0,0.01]
[1722300952892,0.64548196,66698.0,66697.0,0.01]
[1722300953316,0.76124692,66698.0,66697.0,0.01]
[1722300953514,0.76124692,66698.0,66693.0,0.01]
[1722300953515,0.359851,66694.0,66693.0,0.01]
[1722300953719,0.16052992,66698.0,66693.0,0.17556691]
[1722300953720,0.0015542,66697.0,66693.0,0.17556691]
[1722300953922,0.12768014,66694.0,66693.0,0.17556691]
[1722300954210,0.12767861,66694.0,66693.0,0.17556691]
[1722300954433,0.1219123,66694.0,66693.0,0.17556691]
[1722300954639,0.2468623,66694.0,66693.0,0.17556691]
[1722300954838,0.1269123,66694.0,66693.0,0.17556691]
[1722300955725,0.2468623,66694.0,66693.0,0.17556691]
[1722300955928,0.29577585,66694.0,66693.0,0.02493387]
[1722300956155,0.31929315,66694.0,66693.0,0.02493387]
[1722300956439,0.5102806,66694.0,66693.0,0.02493387]
[1722300956651,0.4867633,66694.0,66693.0,0.02493387]
[1722300957230,0.61137053,66694.0,66693.0,0.02493387]
[1722300958232,0.37146953,66694.0,66693.0,0.02493387]
[1722300959311,0.37146953,66694.0,66693.0,0.01]
[1722300959526,0.96009754,66694.0,66693.0,0.01]
[1722300959750,0.6348854,66694.0,66693.0,0.01]
[1722300959950,0.6348854,66694.0,66693.0,0.010913]
[1722300960564,0.85126892,66694.0,66693.0,0.010913]
[1722300960781,0.84626892,66694.0,66693.0,0.010913]
[1722300960933,0.60636792,66694.0,66693.0,0.010913]
[1722300961763,0.60636845,66694.0,66693.0,0.010913]
[1722300962762,0.4817633,66694.0,66693.0,0.010913]
[1722300963887,0.7216643,66694.0,66693.0,0.010913]
[1722300964091,0.6861525,66694.0,66693.0,0.010913]
[1722300964669,0.9260535,66694.0,66693.0,0.010913]
[1722300964870,0.92605639,66694.0,66693.0,0.010913]
[1722300965070,0.68615539,66694.0,66693.0,0.010913]
[1722300965341,0.92605639,66694.0,66693.0,0.010913]
[1722300965654,0.60637224,66694.0,66693.0,0.010913]
[1722300966079,0.24807544,66694.0,66693.0,0.010913]
[1722300966325,0.24807544,66694.0,66693.0,0.42429804]
[1722300966326,0.1234665,66694.0,66693.0,0.42429804]
[1722300966606,0.11418369,66694.0,66693.0,0.30434604]
[1722300966860,0.00764186,66694.0,66693.0,0.30434604]
[1722300967004,0.00083,66698.0,66693.0,0.42429804]
[1722300967205,0.11418369,66697.0,66694.0,0.15063304]
[1722300967455,0.11573789,66696.0,66694.0,0.15063304]
[1722300967653,0.11418369,66695.0,66694.0,0.15063304]
[1722300969431,0.12182555,66695.0,66694.0,0.15063304]
[1722300970391,0.24177455,66695.0,66694.0,0.15063304]
[1722300970597,0.24177455,66695.0,66693.0,0.10464687]
[1722300970598,0.1215042,66694.0,66693.0,0.10464687]
[1722300970810,0.23568789,66694.0,66693.0,0.10464687]
[1722300970954,0.47558889,66694.0,66693.0,0.10464687]
[1722300971165,0.48171887,66694.0,66693.0,0.10464687]
[1722300971368,0.26533526,66694.0,66693.0,0.10464687]
[1722300971569,0.14538526,66694.0,66693.0,0.10464687]
[1722300972323,0.14693946,66694.0,66693.0,0.10464687]
[1722300972817,0.12342207,66694.0,66693.0,0.09464687]
[1722300973347,0.2878271,66694.0,66693.0,0.09464687]
[1722300973517,0.2862729,66694.0,66693.0,0.09464687]
[1722300973757,0.2878271,66694.0,66693.0,0.09464687]
[1722300974471,0.28637239,66694.0,66693.0,0.09464687]
[1722300974674,0.12186787,66694.0,66693.0,0.09464687]
[1722300974814,0.16797869,66694.0,66693.0,0.09464687]
[1722300975024,0.12342207,66694.0,66693.0,0.09464687]
[1722300975556,0.16642449,66694.0,66693.0,0.09464687]
[1722300975762,0.12186787,66694.0,66693.0,0.24527991]
[1722300975957,0.14538467,66694.0,66693.0,0.41649804]
[1722300976158,0.12186787,66694.0,66693.0,0.29654604]
[1722300976360,0.12186787,66694.0,66693.0,0.41649804]
[1722300977576,0.12342207,66694.0,66693.0,0.41649804]
[1722300977887,0.12186787,66694.0,66693.0,0.29654604]
[1722300978045,0.16797869,66694.0,66693.0,0.29654604]
[1722300978246,0.16642449,66694.0,66693.0,0.29654604]
[1722300978585,0.12186787,66694.0,66693.0,0.23034604]
[1722300978786,0.12342207,66694.0,66693.0,0.23034604]
[1722300979027,0.21376932,66694.0,66693.0,0.23034604]
[1722300979177,0.18869965,66694.0,66693.0,0.23034604]
[1722300979498,0.19025385,66694.0,66693.0,0.23034604]
[1722300979856,0.18869965,66694.0,66693.0,0.23034604]
[1722300980483,0.12186787,66694.0,66693.0,0.23034604]
[1722300980648,0.18871623,66694.0,66693.0,0.23034604]
[1722300980848,0.12186787,66694.0,66693.0,0.23034604]
[1722300981227,0.12342207,66694.0,66693.0,0.23034604]
[1722300981438,0.24337207,66694.0,66693.0,0.23034604]
[1722300981770,0.12342207,66694.0,66693.0,0.23034604]
[1722300981922,0.31021723,66694.0,66693.0,0.23034604]
[1722300982125,0.19026723,66694.0,66693.0,0.23034604]
[1722300982287,0.18871303,66694.0,66693.0,0.23034604]
[1722300982491,0.21222873,66694.0,66693.0,0.23034604]
[1722300983115,0.98107413,66694.0,66693.0,0.000913]
[1722300983341,0.9771938,66694.0,66693.0,0.000913]
[1722300983569,1.10568086,66694.0,66693.0,0.000913]
[1722300983831,0.84226688,66694.0,66693.0,0.000913]
[1722300984237,1.08216788,66694.0,66693.0,0.000913]
[1722300984462,0.84226688,66694.0,66693.0,0.000913]
[1722300984665,1.08216788,66694.0,66693.0,0.000913]
[1722300985669,0.84226688,66694.0,66693.0,0.000913]
[1722300985875,0.764923,66694.0,66693.0,0.000913]
[1722300986072,0.85561165,66694.0,66693.0,0.066613]
[1722300986293,0.40041255,66694.0,66693.0,0.066613]
[1722300986474,0.2429745,66694.0,66693.0,0.066613]
[1722300986678,0.38385783,66694.0,66693.0,0.066613]
[1722300986880,0.52375153,66694.0,66693.0,0.066613]
[1722300987079,0.47338929,66694.0,66693.0,0.066613]
[1722300987288,0.4007066,66694.0,66693.0,0.066613]
[1722300987492,0.2792024,66694.0,66693.0,0.066613]
[1722300987711,0.12186787,66694.0,66693.0,0.141613]
[1722300987911,0.19027552,66694.0,66693.0,0.29224604]
[1722300988135,0.12342207,66694.0,66693.0,0.29224604]
[1722300988336,0.12186787,66694.0,66693.0,0.29224604]
[1722300989904,0.12186787,66694.0,66693.0,0.41219804]
[1722300990411,0.12186787,66694.0,66693.0,0.29224604]
[1722300990569,0.12186787,66694.0,66693.0,0.41219804]
[1722300990957,0.12186787,66694.0,66693.0,0.141613]
[1722300991198,0.4981702,66694.0,66693.0,0.000913]
[1722300991398,1.00479379,66694.0,66693.0,0.000913]
[1722300991605,0.76572279,66694.0,66693.0,0.000913]
[1722300992007,1.00562379,66694.0,66693.0,0.000913]
[1722300992559,0.881021,66694.0,66693.0,0.000913]
[1722300992799,0.8988122,66694.0,66693.0,0.000913]
[1722300993067,0.52583032,66694.0,66693.0,0.000913]
[1722300993301,0.52582694,66694.0,66693.0,0.000913]
[1722300993502,0.6426019,66694.0,66693.0,0.000913]
[1722300993673,0.5004821,66694.0,66693.0,0.000913]
[1722300993873,0.58965053,66694.0,66693.0,0.000913]
[1722300994171,0.72621991,66694.0,66693.0,0.000913]
[1722300994374,0.634036,66694.0,66693.0,0.000913]
[1722300994673,0.78489501,66694.0,66693.0,0.000913]
[1722300994850,0.66029712,66694.0,66693.0,0.000913]
[1722300995038,0.63403847,66694.0,66693.0,0.000913]
[1722300995232,0.52251633,66694.0,66693.0,0.000913]
[1722300995720,0.16266533,66694.0,66693.0,0.000913]
[1722300995927,0.27421258,66694.0,66693.0,0.000913]
[1722300996144,0.76241733,66694.0,66693.0,0.000913]
[1722300996399,0.63409579,66694.0,66693.0,0.000913]
[1722300996656,0.52253868,66694.0,66693.0,0.000913]
[1722300996804,0.64562411,66694.0,66693.0,0.000913]
[1722300997004,0.78670236,66694.0,66693.0,0.000913]
[1722300997330,0.78670098,66694.0,66693.0,0.000913]
[1722300997826,0.68792413,66694.0,66693.0,0.000913]
[1722300998027,0.66359825,66694.0,66693.0,0.000913]
[1722300998225,0.7867003,66694.0,66693.0,0.000913]
[1722300998439,0.78825399,66694.0,66693.0,0.000913]
[1722300998776,0.76318801,66694.0,66693.0,0.000913]
[1722300998952,0.76318742,66694.0,66693.0,0.000913]
[1722300999328,0.66318742,66694.0,66693.0,0.000913]
[1722300999533,0.39902692,66694.0,66693.0,0.000913]
[1722301000323,0.48830731,66694.0,66693.0,0.000913]
[1722301000965,0.39902692,66694.0,66693.0,0.000913]
[1722301001469,0.48831031,66694.0,66693.0,0.000913]
[1722301001671,0.39902692,66694.0,66693.0,0.000913]
[1722301001994,0.42254403,66694.0,66693.0,0.000913]
[1722301002128,0.39902692,66694.0,66693.0,0.000913]
[1722301002330,0.12845351,66694.0,66693.0,0.000913]
[1722301002553,0.02425207,66694.0,66693.0,0.000913]
[1722301002770,0.16067935,66694.0,66693.0,0.000913]
[1722301003174,0.27227015,66694.0,66693.0,0.000913]
[1722301003479,0.27071595,66694.0,66693.0,0.000913]
[1722301004058,0.58574904,66694.0,66693.0,0.000913]
[1722301004244,1.23668322,66694.0,66693.0,0.000913]
[1722301004443,1.47054704,66694.0,66693.0,0.000913]
[1722301004617,1.37893646,66694.0,66693.0,0.000913]
[1722301005260,1.37893646,66694.0,66664.0,0.1439]
[1722301005261,0.359997,66667.0,66664.0,0.1439]
[1722301005465,0.359997,66667.0,66660.0,0.02567784]
[1722301005466,0.84768635,66667.0,66666.0,0.02493387]
[1722301005793,0.97235511,66667.0,66666.0,0.01]
[1722301006498,1.07235511,66667.0,66666.0,0.01]
[1722301006674,1.22304943,66667.0,66666.0,0.01]
[1722301006841,1.23304943,66667.0,66666.0,0.01]
[1722301007298,1.22304943,66667.0,66666.0,0.01]
[1722301007494,1.33423502,66667.0,66666.0,0.01]
[1722301007999,1.24657845,66667.0,66666.0,0.01]
[1722301008199,1.25657845,66667.0,66666.0,0.01]
[1722301008343,1.24657845,66667.0,66666.0,0.01]
[1722301008959,1.21080473,66667.0,66666.0,0.01]
[1722301009270,1.21080535,66667.0,66666.0,0.01]
[1722301009612,1.06006683,66667.0,66666.0,0.01]
[1722301009754,0.97121537,66667.0,66666.0,0.01]
[1722301009959,1.03653597,66667.0,66666.0,0.01]
[1722301010160,1.06874751,66667.0,66666.0,0.01]
[1722301010382,1.05874751,66667.0,66666.0,0.01]
[1722301010576,1.0785601,66667.0,66666.0,0.01]
[1722301010780,1.76839797,66667.0,66666.0,0.01]
[1722301010953,1.79362365,66667.0,66666.0,0.01]
[1722301011151,1.79344319,66667.0,66666.0,0.01]
[1722301011445,1.78344319,66667.0,66666.0,0.01]
[1722301011925,1.79344319,66667.0,66666.0,0.01]
[1722301012989,1.78344319,66667.0,66666.0,0.01]
[1722301013134,1.80697417,66667.0,66666.0,0.01]
[1722301013555,1.97080926,66667.0,66666.0,0.01]
[1722301014689,1.38128234,66667.0,66666.0,0.01]
[1722301014918,0.98330859,66667.0,66666.0,0.01]
[1722301016881,0.04349605,66667.0,66666.0,0.01]
[1722301017049,0.04349605,66667.0,66666.0,0.30063404]
[1722301017050,0.03122433,66667.0,66666.0,0.30063404]
[1722301017256,0.03122433,66667.0,66666.0,0.54063604]
[1722301017257,0.02353098,66667.0,66666.0,0.54063604]
[1722301017460,0.119987,66674.0,66668.0,0.119996]
[1722301017685,0.119985,66675.0,66669.0,0.17063304]
[1722301018020,0.06432043,66689.0,66673.0,0.02]
[1722301018021,0.119975,66681.0,66673.0,0.02]
[1722301018222,0.119975,66681.0,66670.0,0.1474]
[1722301018223,0.239933,66686.0,66674.0,0.17063304]
[1722301018519,0.01,66689.0,66674.0,0.17063304]
[1722301018520,0.119967,66685.0,66679.0,0.02]
[1722301018721,0.01219179,66689.0,66679.0,0.02]
[1722301018722,0.00151056,66684.0,66679.0,0.18556691]
[1722301018884,0.239931,66686.0,66679.0,0.18556691]
[1722301018885,0.119971,66683.0,66679.0,0.18556691]
[1722301019090,0.239937,66684.0,66679.0,0.18556691]
[1722301019649,0.119971,66683.0,66679.0,0.18556691]
[1722301020091,0.01219179,66689.0,66679.0,0.18556691]
[1722301020296,0.119969,66684.0,66679.0,0.18556691]
[1722301020482,0.02352214,66683.0,66679.0,0.18556691]
[1722301021845,0.02352214,66683.0,66679.0,0.01493387]
[1722301021846,0.19532316,66680.0,66679.0,0.01493387]
[1722301022044,0.43527516,66680.0,66679.0,0.01493387]
[1722301023394,0.359928,66680.0,66679.0,0.01493387]
[1722301024248,0.90217141,66680.0,66679.0,0.01493387]
[1722301024447,0.90217141,66680.0,66670.0,0.0661]
[1722301024448,1.39480255,66680.0,66670.0,0.0661]
[1722301024600,0.359982,66670.0,66669.0,0.0823]
[1722301024814,0.119999,66667.0,66666.0,0.010913]
[1722301025043,0.37540079,66667.0,66666.0,0.010913]
[1722301025218,0.64673544,66667.0,66666.0,0.010913]
[1722301025537,0.65241612,66667.0,66666.0,0.010913]
[1722301026018,0.90241412,66667.0,66666.0,0.010913]
[1722301026218,0.89241412,66667.0,66666.0,0.010913]
[1722301026419,1.12709251,66667.0,66666.0,0.010913]
[1722301026653,1.12709251,66667.0,66629.0,0.02]
[1722301026654,0.120037,66646.0,66629.0,0.02]
[1722301026849,0.120037,66646.0,66628.0,0.009284]
[1722301026850,0.94491681,66646.0,66630.0,0.009284]
[1722301027061,0.120064,66631.0,66630.0,0.009284]
[1722301027255,0.3910696,66631.0,66630.0,0.009284]
[1722301027454,0.6311976,66631.0,66630.0,0.009284]
[1722301027696,0.69431736,66631.0,66630.0,0.009284]
[1722301028006,0.95798499,66631.0,66630.0,0.009284]
[1722301028146,0.65473723,66631.0,66630.0,0.009284]
[1722301028341,0.62385963,66631.0,66630.0,0.009284]
[1722301029601,0.39064462,66631.0,66630.0,0.009284]
[1722301029941,0.15051662,66631.0,66630.0,0.009284]
[1722301030764,0.60723299,66631.0,66630.0,0.009284]
[1722301030966,0.69196769,66631.0,66630.0,0.009284]
[1722301031564,0.45183969,66631.0,66630.0,0.009284]
[1722301031743,0.60723299,66631.0,66630.0,0.009284]
[1722301032126,0.36710499,66631.0,66630.0,0.009284]
[1722301032329,0.60723299,66631.0,66630.0,0.009284]
[1722301033429,0.36710499,66631.0,66630.0,0.009284]
[1722301033793,0.15051667,66631.0,66630.0,0.009284]
[1722301034085,0.03045267,66631.0,66630.0,0.32101704]
[1722301034830,0.00691299,66631.0,66630.0,0.32101704]
[1722301035073,0.120062,66632.0,66631.0,0.02]
[1722301035272,0.120061,66633.0,66632.0,0.01]
[1722301035491,0.19129,66633.0,66632.0,0.16063304]
[1722301035827,0.19129,66633.0,66632.0,0.17063304]
[1722301036026,0.071229,66633.0,66632.0,0.17063304]
[1722301036231,0.120058,66635.0,66633.0,0.01]
[1722301036667,0.120054,66637.0,66633.0,0.02]
[1722301036841,0.120057,66635.0,66633.0,0.02]
[1722301037040,0.07534716,66644.0,66633.0,0.02]
[1722301037041,0.120058,66634.0,66633.0,0.02]
[1722301037939,0.1319336,66638.0,66633.0,0.02]
[1722301038152,0.120054,66637.0,66633.0,0.02]
[1722301038288,0.120055,66636.0,66633.0,0.02]
[1722301038770,0.17866626,66637.0,66633.0,0.02]
[1722301039818,0.01183916,66640.0,66636.0,0.02]
[1722301040024,0.240082,66644.0,66636.0,0.02]
[1722301040025,0.120046,66641.0,66636.0,0.02]
[1722301040229,0.00091299,66645.0,66644.0,0.12004]
[1722301040446,0.120032,66649.0,66644.0,0.09343387]
[1722301040650,0.4753,66657.0,66646.0,0.02]
[1722301040651,0.240043,66655.0,66646.0,0.02]
[1722301040858,0.4753,66657.0,66646.0,0.02]
[1722301040859,0.240059,66651.0,66646.0,0.02]
[1722301041023,0.13184095,66654.0,66646.0,0.02]
[1722301041024,0.240054,66652.0,66646.0,0.02]
[1722301041223,0.0955375,66654.0,66646.0,0.02]
[1722301041224,0.240059,66651.0,66646.0,0.02]
[1722301041425,0.120034,66648.0,66646.0,0.02]
[1722301041698,0.12094799,66647.0,66646.0,0.02]
[1722301041863,0.12094799,66647.0,66645.0,0.15063304]
[1722301041864,0.360111,66646.0,66645.0,0.15063304]
[1722301042069,0.360111,66646.0,66644.0,0.01493387]
[1722301042070,0.360117,66645.0,66644.0,0.01493387]
[1722301042297,0.63452342,66645.0,66644.0,0.01493387]
[1722301042634,0.39444542,66645.0,66644.0,0.01493387]
[1722301042763,0.45852387,66645.0,66644.0,0.01493387]
[1722301043523,0.360117,66645.0,66644.0,0.01493387]
[1722301044483,0.3667617,66645.0,66644.0,0.01493387]
[1722301045334,0.0066447,66645.0,66644.0,0.01493387]
[1722301045889,0.1266837,66645.0,66644.0,0.01493387]
[1722301046092,0.12667882,66645.0,66644.0,0.01493387]
[1722301046618,0.00663982,66645.0,66644.0,0.01493387]
[1722301046871,0.120035,66647.0,66644.0,0.01493387]
[1722301046872,0.120037,66646.0,66644.0,0.01493387]
[1722301047257,0.66757449,66645.0,66644.0,0.01493387]
[1722301047425,0.66757449,66645.0,66644.0,0.18556691]
[1722301047426,0.0310877,66645.0,66644.0,0.18556691]
[1722301047802,0.03017471,66645.0,66644.0,0.18556691]
[1722301048083,0.120035,66647.0,66644.0,0.18556691]
[1722301048260,0.120035,66647.0,66645.0,0.02]
[1722301048261,0.00663982,66646.0,66645.0,0.02]
[1722301048781,0.00663982,66646.0,66645.0,0.01]
[1722301049725,0.03138824,66646.0,66645.0,0.01]
[1722301050028,0.03138824,66646.0,66645.0,0.02]
[1722301050605,0.03230123,66646.0,66645.0,0.01]
[1722301050851,0.03138824,66646.0,66645.0,0.02]
[1722301050986,0.03230123,66646.0,66645.0,0.02]
[1722301051196,0.05583594,66646.0,66645.0,0.02]
[1722301051376,0.03138824,66646.0,66645.0,0.02]
[1722301051578,0.03230123,66646.0,66645.0,0.02]
[1722301051983,0.03138824,66646.0,66645.0,0.02]
[1722301052231,0.00663982,66646.0,66645.0,0.61385004]
[1722301052431,0.00663982,66646.0,66645.0,0.91582804]
[1722301052630,0.240013,66663.0,66656.0,0.02]
[1722301052848,0.02888897,66662.0,66659.0,0.02]
[1722301053087,0.02888897,66661.0,66659.0,0.01]
[1722301053601,0.00671312,66660.0,66659.0,0.01]
[1722301053727,0.03560209,66660.0,66659.0,0.01]
[1722301053924,0.15561409,66660.0,66659.0,0.02]
[1722301054168,0.15561409,66660.0,66659.0,0.01]
[1722301054832,0.1791447,66660.0,66659.0,0.01]
[1722301055286,0.4191687,66660.0,66659.0,0.01]
[1722301055445,0.1791447,66660.0,66659.0,0.01]
[1722301056139,0.360046,66658.0,66657.0,0.0619]
[1722301056341,0.38893497,66658.0,66657.0,0.0619]
[1722301056842,0.39564809,66658.0,66657.0,0.0619]
[1722301058208,0.15561709,66658.0,66657.0,0.0619]
[1722301058636,0.39564809,66658.0,66657.0,0.0619]
[1722301059196,0.63567909,66658.0,66657.0,0.0619]
[1722301059551,0.65920992,66658.0,66657.0,0.0619]
[1722301060316,0.41917892,66658.0,66657.0,0.0619]
[1722301060730,0.39564809,66658.0,66657.0,0.0619]
[1722301061567,0.15561709,66658.0,66657.0,0.0619]
[1722301062385,0.3151969,66658.0,66654.0,0.0831]
[1722301062586,0.02888897,66657.0,66655.0,0.02]
[1722301062767,0.02888897,66656.0,66655.0,0.02]
[1722301062966,0.03568595,66656.0,66655.0,0.02]
[1722301063666,0.119992,66671.0,66664.0,0.1423]
[1722301063870,0.02836138,66670.0,66668.0,0.02]
[1722301064072,0.02836138,66670.0,66669.0,0.29062804]
[1722301064073,0.00685613,66670.0,66669.0,0.29062804]
[1722301064342,0.03816037,66670.0,66669.0,0.67291904]
[1722301064548,0.01178756,66677.0,66674.0,0.02]
[1722301064713,0.01178756,66677.0,66674.0,0.01493387]
[1722301064714,0.119985,66675.0,66674.0,0.01493387]
[1722301064953,0.15541898,66675.0,66674.0,0.01493387]
[1722301065154,0.39538898,66675.0,66674.0,0.01493387]
[1722301065278,0.4189149,66675.0,66674.0,0.01493387]
[1722301065824,0.1789449,66675.0,66674.0,0.01493387]
[1722301066228,0.24930131,66675.0,66674.0,0.01493387]
[1722301066800,0.1789449,66675.0,66674.0,0.01493387]
[1722301067624,0.0539599,66675.0,66674.0,0.01493387]
[1722301068029,0.03038205,66675.0,66674.0,0.39489287]
[1722301068240,0.03038205,66675.0,66674.0,0.15491987]
[1722301068449,0.03038205,66675.0,66674.0,0.03493387]
[1722301068450,0.02352592,66675.0,66674.0,0.03493387]
[1722301068708,0.00685613,66675.0,66674.0,0.15491987]
[1722301069048,0.119978,66679.0,66674.0,0.03493387]
[1722301069741,0.00685613,66678.0,66674.0,0.15491987]
[1722301070108,0.00685613,66678.0,66674.0,0.03493387]
[1722301070274,0.119974,66681.0,66676.0,0.119982]
[1722301070673,0.119976,66680.0,66674.0,0.39489087]
[1722301070853,0.239938,66684.0,66675.0,0.119983]
[1722301071061,0.119975,66681.0,66674.0,0.27490587]
[1722301071258,0.119971,66683.0,66679.0,0.02]
[1722301071702,0.119969,66684.0,66679.0,0.02]
[1722301071952,0.02352232,66683.0,66679.0,0.02]
[1722301072140,0.119969,66684.0,66679.0,0.02]
[1722301072436,0.0008433,66683.0,66679.0,0.02]
[1722301072636,0.07534716,66682.0,66679.0,0.139977]
[1722301073015,0.07534716,66682.0,66680.0,0.119975]
[1722301073536,0.07534716,66682.0,66679.0,0.139977]
[1722301074546,0.07534716,66682.0,66679.0,0.02]
[1722301075091,0.07534716,66682.0,66679.0,0.139977]
[1722301075496,0.09886914,66682.0,66679.0,0.139977]
[1722301075709,0.07534716,66682.0,66679.0,0.139977]
[1722301076504,0.07534716,66682.0,66679.0,0.02]
[1722301077679,0.07534716,66682.0,66677.0,0.11998]
[1722301077835,0.00092667,66681.0,66678.0,0.15063304]
[1722301078017,0.19531916,66682.0,66678.0,0.15063304]
[1722301078554,0.0015542,66681.0,66678.0,0.15063304]
[1722301078760,0.0015542,66681.0,66679.0,0.02]
[1722301078914,0.19531916,66682.0,66679.0,0.02]
[1722301079118,0.02352279,66681.0,66679.0,0.02]
[1722301079306,0.0015542,66680.0,66679.0,0.02]
[1722301079969,0.02352279,66681.0,66679.0,0.02]
[1722301080125,0.14349679,66681.0,66679.0,0.02]
[1722301080518,0.0015542,66680.0,66679.0,0.02]
[1722301080638,0.14349679,66681.0,66679.0,0.02]
[1722301081587,0.14349679,66681.0,66678.0,0.17063304]
[1722301081762,0.02352279,66681.0,66679.0,0.02]
[1722301082548,0.02352279,66681.0,66679.0,0.03493387]
[1722301083189,0.14349679,66681.0,66679.0,0.01493387]
[1722301083340,0.0015542,66680.0,66679.0,0.01493387]
[1722301083560,0.0015542,66680.0,66679.0,0.03493387]
[1722301083746,0.02352279,66681.0,66679.0,0.03493387]
[1722301083942,0.02352279,66681.0,66679.0,0.01493387]
[1722301084149,0.1538573,66680.0,66679.0,0.01493387]
[1722301084367,0.359928,66680.0,66679.0,0.01493387]
[1722301085543,0.119976,66680.0,66679.0,0.01493387]
[1722301086861,0.1215302,66680.0,66679.0,0.01493387]
[1722301087287,0.119976,66680.0,66679.0,0.01493387]
[1722301087494,0.119975,66681.0,66679.0,0.01493387]
[1722301087712,0.02215129,66680.0,66679.0,0.01493387]
[1722301087893,0.14212729,66680.0,66679.0,0.01493387]
[1722301088520,0.02215129,66680.0,66679.0,0.01493387]
[1722301088908,0.14212729,66680.0,66679.0,0.01493387]
[1722301089288,0.02215129,66680.0,66679.0,0.01493387]
[1722301089437,0.02303947,66680.0,66679.0,0.01493387]
[1722301089633,0.02215129,66680.0,66679.0,0.01493387]
[1722301091064,0.16565027,66680.0,66679.0,0.01493387]
[1722301091744,0.04567427,66680.0,66679.0,0.39486587]
[1722301092210,0.02215129,66680.0,66679.0,0.39486587]
[1722301092404,0.02215129,66680.0,66679.0,0.39577887]
[1722301092705,0.02215129,66680.0,66679.0,0.15582387]
[1722301093223,0.02215129,66680.0,66679.0,0.512945]
[1722301093430,0.02215129,66680.0,66679.0,0.522945]
[1722301094445,0.02215129,66680.0,66679.0,0.28299]
[1722301095243,0.61047412,66680.0,66679.0,0.000913]
[1722301095454,1.15555406,66680.0,66679.0,0.000913]
[1722301095620,0.86522885,66680.0,66679.0,0.000913]
[1722301095800,0.58064716,66680.0,66679.0,0.000913]
[1722301096000,0.58064716,66680.0,66679.0,0.27839]
[1722301096001,0.26046042,66680.0,66679.0,0.27839]
[1722301096207,0.25445215,66680.0,66679.0,0.27839]
[1722301096406,0.14678007,66680.0,66679.0,0.27839]
[1722301096607,0.14648987,66680.0,66679.0,0.518345]
[1722301096804,0.02215129,66680.0,66679.0,0.518345]
[1722301097051,0.04567436,66680.0,66679.0,0.518345]
[1722301097225,0.02215129,66680.0,66679.0,0.27839]
[1722301099077,0.02215129,66680.0,66679.0,0.158413]
[1722301099232,0.04567404,66680.0,66679.0,0.158413]
[1722301099623,0.04567404,66680.0,66679.0,0.27839]
[1722301102840,0.04567404,66680.0,66679.0,0.158413]
[1722301103035,0.04567404,66680.0,66679.0,0.27839]
[1722301103422,0.04567404,66680.0,66679.0,0.158413]
[1722301104366,0.04567404,66680.0,66679.0,0.148413]
[1722301104771,0.04567404,66680.0,66679.0,0.158413]
[1722301105174,0.04567404,66680.0,66679.0,0.148413]
[1722301105378,0.04722824,66680.0,66679.0,0.158413]
[1722301105620,0.04704773,66680.0,66679.0,0.148413]
[1722301105826,0.04549353,66680.0,66679.0,0.148413]
[1722301106030,0.04549353,66680.0,66679.0,0.158413]
[1722301106298,0.09169932,66680.0,66679.0,0.158413]
[1722301106694,0.09014512,66680.0,66679.0,0.158413]
[1722301106942,0.09016225,66680.0,66679.0,0.158413]
[1722301107113,0.09100148,66680.0,66679.0,0.148413]
[1722301107296,0.11333584,66680.0,66679.0,0.148413]
[1722301107497,0.06700308,66680.0,66679.0,0.148413]
[1722301107698,0.06855728,66680.0,66679.0,0.148413]
[1722301107900,0.18853328,66680.0,66679.0,0.148413]
[1722301108270,0.14264125,66680.0,66679.0,0.148413]
[1722301108472,0.14419545,66680.0,66679.0,0.148413]
[1722301109201,0.25586725,66680.0,66679.0,0.148413]
[1722301109410,0.14264125,66680.0,66679.0,0.148413]
[1722301109632,0.25431305,66680.0,66679.0,0.158413]
[1722301109837,0.25586725,66680.0,66679.0,0.148413]
[1722301110033,0.25427164,66680.0,66679.0,0.148413]
[1722301110241,0.73417564,66680.0,66679.0,0.138413]
[1722301110435,0.86934312,66680.0,66679.0,0.076113]
[1722301110659,1.00355945,66680.0,66679.0,0.076113]
[1722301110860,1.28866983,66680.0,66679.0,0.000913]
[1722301111123,0.86934312,66680.0,66679.0,0.000913]
[1722301111274,0.52835074,66680.0,66679.0,0.000913]
[1722301111475,0.39141732,66680.0,66679.0,0.062313]
[1722301111839,0.39141732,66680.0,66679.0,0.000913]
[1722301111840,0.87132132,66680.0,66679.0,0.000913]
[1722301112041,0.84779802,66680.0,66679.0,0.000913]
[1722301112753,0.98206226,66680.0,66679.0,0.000913]
[1722301112959,0.70289858,66680.0,66679.0,0.000913]
[1722301113156,0.97861249,66680.0,66679.0,0.000913]
[1722301114878,0.92232992,66680.0,66679.0,0.000913]
[1722301115477,1.30884682,66680.0,66679.0,0.000913]
[1722301116128,1.32884682,66680.0,66679.0,0.000913]
[1722301116433,1.19593224,66680.0,66679.0,0.000913]
[1722301116587,1.34205524,66680.0,66679.0,0.000913]
[1722301116995,1.31853048,66680.0,66679.0,0.000913]
[1722301117455,1.32853048,66680.0,66679.0,0.000913]